[Event "Sautron op 16th"]
[Site "Sautron"]
[Date "2016.10.22"]
[Round "4.2"]
[White "Istratescu, Andrei"]
[Black "Stephan, Victor"]
[Result "1-0"]
[ECO "D06"]
[WhiteElo "2600"]
[BlackElo "2356"]
[Annotator "RR"]
[PlyCount "61"]
[EventDate "2016.10.22"]
[EventType "swiss"]
[EventRounds "9"]
[EventCountry "FRA"]
[SourceTitle "EXT 2019"]
[Source "ChessBase"]
[SourceDate "2018.10.10"]
[SourceVersion "1"]
[SourceVersionDate "2018.10.10"]
[SourceQuality "1"]
[TimeControl "40/5400+30:1800+30"]
[WhiteClock "0:21:53"]
[BlackClock "0:16:16"]

1. d4 {[%emt 0:03:12]} d5 {[%emt 0:00:00]} 2. c4 {[%emt 0:00:06]} c5 {[%emt 0:
00:00] Une monographie a été publiée récemment par le GMI BEZGODOV sur
cette variante rare} 3. cxd5 {[%emt 0:01:43]} Qxd5 {[%emt 0:00:00]} 4. Nf3 {
[%emt 0:00:58]} cxd4 {[%emt 0:00:00]} 5. Nc3 {[%emt 0:00:22]} Qa5 {[%emt 0:00:
12]} 6. Nxd4 {[%emt 0:00:06]} Nf6 {[%emt 0:00:13]} 7. g3 {[%emt 0:05:24]} (7.
Nb3 Qc7 8. e4 Nc6 9. Be2 e6 10. O-O a6 11. Be3 Bd6 12. f4 e5 13. f5 O-O 14. Rc1
Qd8 15. g4 h6 16. h4 Nh7 17. Kg2 Be7 18. Qxd8 Rxd8 19. Bb6 Bxh4 20. Bxd8 Bxd8
21. Bc4 Nf6 22. Kf3 Bb6 23. Nd5 Nxd5 24. exd5 Nd4+ 25. Nxd4 Bxd4 26. Bb3 Kf8
27. d6 Bd7 28. Rc7 Rd8 29. Rfc1 Bc6+ 30. Ke2 e4 31. Rxf7+ Ke8 32. Re7+ Kf8 33.
Rf7+ Ke8 34. Rd1 Bb5+ 35. Ke1 Bf6 36. Kf2 Bd3 {Ding,L (2766)-Mamedyarov,S 
(2747) Huaian 2016 1/2-1/2}) 7... e5 {[%emt 0:00:29]} 8. Nb3 {[%emt 0:00:35]}
Qc7 {[%emt 0:00:08]} 9. Bg2 {[%emt 0:01:51]} Bb4 {[%emt 0:00:32]} 10. Bd2 {
[%emt 0:03:52]} (10. Qd3 $5 O-O 11. Bg5 Rd8 12. Qf3 {Fressinet,L (2697)
-Degraeve,J (2569) FRA-chA 85th 2010 (5) 1-0}) 10... O-O {[%emt 0:03:54]} 11.
Rc1 {[%emt 0:03:35]} Nc6 {[%emt 0:02:14]} 12. a3 $146 {[%emt 0:05:32] Une
nouveauté trouvée devant l'échiquier car Andréi a commencé à réfléchir}
(12. O-O Rd8 13. Qc2 h6 14. Ne4 Nd5 15. Rfd1 Qb6 16. Bxh6 Be7 17. Bd2 Bg4 18.
Ng5 Nf6 19. Qc4 Bh5 20. Bf3 Bg6 21. Be3 Qb4 22. Qxb4 Rxd1+ 23. Rxd1 Nxb4 24.
Bxb7 Rb8 25. Na5 Nxa2 26. Bxa7 Re8 27. Nc6 Bf8 28. f3 Nb4 29. Nxb4 Bxb4 30. e4
Bf8 31. Bc6 Rc8 32. Rc1 Be7 33. Be3 Rb8 34. Rc2 Kf8 35. Kf2 Ng8 36. h4 Bb4 37.
g4 f6 38. Ne6+ Kf7 39. Bd5 Ne7 40. Bc4 Rc8 41. h5 Bh7 {Wojtaszek,R (2710)
-Ulybin,M (2521) Jurmala 2013 1-0}) 12... Bxc3 {[%emt 0:03:06]} 13. Rxc3 {
[%emt 0:01:02]} Bf5 {[%emt 0:08:11]} 14. Nc5 $14 {[%emt 0:00:48][%csl Rb7,Rc6,
Rc7][%cal Gc5b7,Gc3c7]} Rac8 {[%emt 0:01:39]} (14... Rfd8 $2 15. Nxb7) 15. Bg5
$1 {[%emt 0:10:28] La paire de B est forte} Nd7 {[%emt 0:06:57]} 16. e4 {
[%emt 0:18:25]} Nxc5 {[%emt 0:03:24]} 17. exf5 $1 $36 {[%emt 0:00:36][%csl Gf5]
[%cal Gf5f6] Le P"f" empêche le repli Ne6} Nd7 {[%emt 0:02:32]} 18. f6 {
[%emt 0:03:10]} g6 {[%emt 0:15:03]} 19. h4 $1 {[%emt 0:00:56]} Rfd8 {[%emt 0:
02:35]} 20. h5 {[%emt 0:01:01]} Nc5 {[%emt 0:02:41]} 21. Qg4 {[%emt 0:04:56]} (
21. Qe2 Nd4 $13) 21... Rd4 {[%emt 0:06:53]} 22. Qh3 $40 {[%emt 0:02:04] Le
plan des Blancs est impressionnant} Ne4 {[%emt 0:03:50]} 23. Bxe4 {[%emt 0:04:
08]} Rxe4+ {[%emt 0:00:04]} 24. Kf1 {[%emt 0:00:03]} Re8 {[%emt 0:02:21]} 25.
Rf3 {[%emt 0:01:12]} (25. Kg2 Re2 26. hxg6 fxg6 27. Rd1) 25... Nd4 {[%emt 0:01:
53]} 26. Rc3 {[%emt 0:03:45]} Nc6 {[%emt 0:00:13]} 27. Kg2 {[%emt 0:00:46]} Rd4
{[%emt 0:06:58]} 28. Rf3 {[%emt 0:00:43]} Rd7 {[%emt 0:00:50]} 29. Be3 {
[%emt 0:02:05]} Re6 {[%emt 0:11:47]} 30. hxg6 {[%emt 0:00:10]} fxg6 {[%emt 0:
00:05]} 31. Qxe6+ {[%emt 0:00:03]} 1-0